bitfinex/quotes_BTCUSD_20251009
["timestamp","ask_amount","ask_price","bid_price","bid_amount"]
[1760034092684,2.01669439,120740.0,120730.0,0.00195639]
[1760034092905,1.35133439,120740.0,120730.0,0.00195639]
[1760034093047,2.01673439,120740.0,120730.0,0.00195639]
[1760034094381,2.34287817,120740.0,120730.0,0.00195639]
[1760034094722,2.0389487,120740.0,120730.0,0.00195639]
[1760034094928,2.04635347,120740.0,120730.0,0.00195639]
[1760034095142,2.04631347,120740.0,120730.0,0.00195639]
[1760034095354,2.06112302,120740.0,120730.0,0.00195639]
[1760034095569,2.36505249,120740.0,120730.0,0.00195639]
[1760034096472,1.93437249,120740.0,120730.0,0.00195639]
[1760034096673,1.69969249,120740.0,120730.0,0.00195639]
[1760034096897,1.45326408,120740.0,120730.0,0.00195639]
[1760034097087,2.06112302,120740.0,120730.0,0.00195639]
[1760034097285,1.82644302,120740.0,120730.0,0.00195639]
[1760034097507,2.36505249,120740.0,120730.0,0.00195639]
[1760034097872,2.36501249,120740.0,120730.0,0.00195639]
[1760034098037,1.69969249,120740.0,120730.0,0.00195639]
[1760034098254,2.32058386,120740.0,120730.0,0.00195639]
[1760034098793,1.37146484,120740.0,120730.0,0.00165641]
[1760034099040,1.37146484,120740.0,120730.0,0.04518641]
[1760034099041,0.56034105,120740.0,120730.0,0.04518641]
[1760034099292,0.88649677,120740.0,120730.0,0.07986641]
[1760034099530,0.85686043,120740.0,120730.0,0.00165641]
[1760034099762,1.19686043,120740.0,120730.0,0.00165641]
[1760034100202,1.29227983,120740.0,120730.0,0.00165641]
[1760034100421,1.54930608,120740.0,120730.0,0.00165641]
[1760034100888,1.31450608,120740.0,120730.0,0.00165641]
[1760034101323,1.19698043,120740.0,120730.0,0.04518641]
[1760034103575,1.29875449,120740.0,120730.0,0.04518641]
[1760034103808,1.29875449,120740.0,120730.0,0.04449706]
[1760034104477,1.29871449,120740.0,120730.0,0.04449706]
[1760034104930,1.29871449,120740.0,120730.0,0.00096706]
[1760034105187,1.29866136,120740.0,120730.0,0.00096706]
[1760034105398,1.28319007,120740.0,120730.0,0.00096706]
[1760034105988,1.29866299,120740.0,120730.0,0.00096706]
[1760034106195,1.29866299,120740.0,120730.0,6.706e-05]
[1760034106429,1.28319007,120740.0,120730.0,6.706e-05]
[1760034106838,1.28319007,120740.0,120730.0,0.04542706]
[1760034107022,1.06394508,120740.0,120730.0,0.04542706]
[1760034107222,1.29862508,120740.0,120730.0,0.07708706]
[1760034107425,0.88440233,120740.0,120730.0,0.14452706]
[1760034107636,0.88440233,120740.0,120730.0,0.16452706]
[1760034109061,0.88440233,120740.0,120730.0,0.33018596]
[1760034109062,0.22360233,120740.0,120730.0,0.33018596]
[1760034109283,0.43605608,120740.0,120730.0,0.33018596]
[1760034109479,0.43609608,120740.0,120730.0,0.33018596]
[1760034110109,0.2694509,120740.0,120730.0,0.33018596]
[1760034110311,0.18262537,120740.0,120730.0,0.33018596]
[1760034110514,0.41734537,120740.0,120730.0,0.33018596]
[1760034110917,0.41634537,120740.0,120730.0,0.33018596]
[1760034111663,0.41630537,120740.0,120730.0,0.33018596]
[1760034112199,0.25066019,120740.0,120730.0,0.33018596]
[1760034112408,0.41630537,120740.0,120730.0,0.33018596]
[1760034112830,0.18162537,120740.0,120730.0,0.33018596]
[1760034113237,0.41630537,120740.0,120730.0,0.33018596]
[1760034113442,0.40083036,120740.0,120730.0,0.33018596]
[1760034116276,0.23518518,120740.0,120730.0,0.33018596]
[1760034116448,0.40083036,120740.0,120730.0,0.33018596]
[1760034117492,0.00050518,120740.0,120730.0,0.33018596]
[1760034117703,0.00050518,120740.0,120730.0,0.41330802]
[1760034117926,0.00050518,120740.0,120730.0,0.64794802]
[1760034118966,0.00050518,120740.0,120730.0,0.64798802]
[1760034119188,0.00050518,120740.0,120730.0,0.64898802]
[1760034119609,0.00050518,120740.0,120730.0,0.41430802]
[1760034119762,0.40031356,120750.0,120740.0,0.01949482]
[1760034119975,0.40031356,120750.0,120740.0,0.24722835]
[1760034120201,0.40031356,120750.0,120740.0,0.17978835]
[1760034120414,0.16695197,120750.0,120740.0,0.34543353]
[1760034120606,0.16694987,120750.0,120740.0,0.41287353]
[1760034120807,0.40170987,120750.0,120740.0,0.41287353]
[1760034122028,0.16694987,120750.0,120740.0,0.41287353]
[1760034122240,0.00131841,120750.0,120740.0,0.41287353]
[1760034124022,0.16694987,120750.0,120740.0,0.24722835]
[1760034124240,0.40174987,120750.0,120740.0,0.17978835]
[1760034124915,0.40174987,120750.0,120740.0,0.41369353]
[1760034126262,0.16694987,120750.0,120740.0,0.17978835]
[1760034126510,0.40174987,120750.0,120740.0,0.34543353]
[1760034126697,0.40174987,120750.0,120740.0,0.24804835]
[1760034127044,0.37302969,120750.0,120740.0,0.24804835]
[1760034127247,0.37302969,120750.0,120740.0,0.41369353]
[1760034128116,0.16563146,120750.0,120740.0,0.41369353]
[1760034128325,0.23476,120750.0,120740.0,0.41369353]
[1760034128528,0.40039146,120750.0,120740.0,0.41369353]
[1760034128681,0.23476,120750.0,120740.0,0.41369353]
[1760034128894,0.40039146,120750.0,120740.0,0.41369353]
[1760034129508,0.40039146,120750.0,120740.0,0.24804835]
[1760034129509,0.16563146,120750.0,120740.0,0.24804835]
[1760034129713,0.40035146,120750.0,120740.0,0.17978835]
[1760034130336,0.40035146,120750.0,120740.0,0.34543353]
[1760034130574,0.40035146,120750.0,120740.0,0.41369353]
[1760034130777,0.40031146,120750.0,120740.0,0.41369353]
[1760034133260,0.40031146,120750.0,120740.0,0.17978835]
[1760034133261,0.16563146,120750.0,120740.0,0.17978835]
[1760034133465,0.40031146,120750.0,120740.0,0.17978835]
[1760034134546,0.40031146,120750.0,120740.0,0.24804835]
[1760034135635,0.80597499,120750.0,120740.0,0.01964629]
[1760034138204,0.40027146,120750.0,120740.0,0.01964629]
[1760034138408,1.14597499,120750.0,120740.0,0.01964629]
[1760034138616,0.99133179,120750.0,120740.0,0.01964629]
[1760034138822,1.22597179,120750.0,120740.0,0.01964629]
[1760034139024,0.99133179,120750.0,120740.0,0.01964629]
[1760034139296,1.14597499,120750.0,120740.0,0.01964629]
[1760034139501,0.91133499,120750.0,120740.0,0.01964629]
[1760034139711,1.14597499,120750.0,120740.0,0.01964629]
[1760034140353,1.22909705,120750.0,120740.0,0.01964629]
[1760034140568,1.24459602,120750.0,120740.0,0.01964629]
[1760034140774,1.32459282,120750.0,120740.0,0.01964629]
[1760034141382,1.30909385,120750.0,120740.0,0.01964629]
[1760034142453,1.07445385,120750.0,120740.0,0.01964629]
[1760034142658,1.39525385,120750.0,120740.0,0.01964629]
[1760034143090,1.42012572,120750.0,120740.0,0.01964629]
[1760034143304,1.42008572,120750.0,120740.0,0.01964629]
[1760034144569,0.92822219,120750.0,120740.0,0.01964629]
[1760034144794,1.33408572,120750.0,120740.0,0.01964629]
[1760034145034,0.70232725,120750.0,120740.0,0.01964629]
[1760034145258,1.42891078,120750.0,120740.0,0.01964629]
[1760034145480,1.19615078,120750.0,120740.0,0.01964629]
[1760034145743,1.43091078,120750.0,120740.0,0.01964629]
[1760034146388,1.11003078,120750.0,120740.0,0.01964629]
[1760034146627,1.43087078,120750.0,120740.0,0.01964629]
[1760034146842,1.11003078,120750.0,120740.0,0.01964629]
[1760034147142,1.43087078,120750.0,120740.0,0.01964629]
[1760034148518,0.71045045,120750.0,120740.0,0.01964629]
[1760034148726,1.11615398,120750.0,120740.0,0.01964629]
[1760034148945,1.35087398,120750.0,120740.0,0.01964629]
[1760034149810,1.11615398,120750.0,120740.0,0.01964629]
[1760034150023,1.35083398,120750.0,120740.0,0.01964629]
[1760034150259,1.43083078,120750.0,120740.0,0.01964629]
[1760034151851,1.11003078,120750.0,120740.0,0.01964629]
[1760034152268,1.43079078,120750.0,120740.0,0.01964629]
[1760034153127,1.43083078,120750.0,120740.0,0.01964629]
[1760034153978,1.19615078,120750.0,120740.0,0.01964629]
[1760034154187,1.49079078,120750.0,120740.0,0.01964629]
[1760034157414,1.49075078,120750.0,120740.0,0.01964629]
[1760034159696,1.49071078,120750.0,120740.0,0.01964629]
[1760034163663,1.69368989,120750.0,120740.0,0.01964629]
[1760034167993,1.45912989,120750.0,120740.0,0.01964629]
[1760034168177,1.69368989,120750.0,120740.0,0.01964629]
[1760034168593,1.70921145,120750.0,120740.0,0.01964629]
[1760034168785,1.69368989,120750.0,120740.0,0.01964629]
[1760034168988,1.45912989,120750.0,120740.0,0.01964629]
[1760034169196,1.47465145,120750.0,120740.0,0.01964629]
[1760034169404,1.70921145,120750.0,120740.0,0.01964629]
[1760034169605,1.47465145,120750.0,120740.0,0.01964629]
[1760034169871,1.70921145,120750.0,120740.0,0.01964629]
[1760034171152,1.10052881,120750.0,120740.0,0.01964629]
[1760034171368,1.38853145,120750.0,120740.0,0.01964629]
[1760034171572,1.62309145,120750.0,120740.0,0.01964629]
[1760034171832,1.22541259,120750.0,120740.0,0.01964629]
[1760034172069,1.24175127,120750.0,120740.0,0.01964629]
[1760034172506,1.54609259,120750.0,120740.0,0.01964629]
[1760034173000,1.31153416,120750.0,120740.0,0.01964629]
[1760034173201,1.54609416,120750.0,120740.0,0.01964629]
[1760034173421,1.60363453,120750.0,120740.0,0.01964629]
[1760034175019,1.60363453,120750.0,120730.0,0.02]
[1760034175245,0.16572754,120680.0,120670.0,0.0004]
[1760034175468,1.29461432,120680.0,120670.0,0.00090518]
[1760034175683,0.53266754,120680.0,120670.0,0.07665518]
[1760034175897,0.53266754,120680.0,120670.0,0.14628973]
[1760034175898,0.53598559,120680.0,120670.0,0.14628973]
[1760034176124,0.74516559,120680.0,120670.0,0.14628973]
[1760034176355,0.40516559,120680.0,120670.0,0.14628973]
[1760034176574,0.16572754,120680.0,120670.0,0.22941179]
[1760034177202,0.40188754,120680.0,120670.0,0.22941179]
[1760034177483,0.40962983,120680.0,120670.0,0.22941179]
[1760034177920,0.71397115,120680.0,120670.0,0.22941179]
[1760034179138,0.71396737,120680.0,120670.0,0.22941179]
[1760034179281,0.71392737,120680.0,120670.0,0.22941179]
[1760034179775,1.08788869,120680.0,120660.0,0.03153]
[1760034179922,1.14555391,120670.0,120660.0,0.0004]
[1760034180128,0.17347978,120670.0,120660.0,0.0481055]
[1760034180340,0.17347978,120670.0,120660.0,0.07615]
[1760034180341,0.16574127,120670.0,120660.0,0.07615]
[1760034180747,0.16574127,120670.0,120660.0,0.14187]
[1760034181342,0.60751259,120670.0,120660.0,0.0004]
[1760034181556,0.85212485,120670.0,120660.0,0.0004]
[1760034181782,0.79027485,120670.0,120660.0,0.0004]
[1760034182210,0.80573286,120670.0,120660.0,0.0004]
[1760034182418,0.80573298,120670.0,120660.0,0.0004]
[1760034183294,0.80573298,120670.0,120660.0,1e-08]
[1760034183519,0.56092064,120650.0,120640.0,1e-08]
[1760034183772,0.6390212,120650.0,120640.0,1e-08]
[1760034183997,0.99159914,120650.0,120640.0,1e-08]
[1760034184203,0.97034046,120650.0,120640.0,1e-08]
[1760034184414,1.14508046,120650.0,120640.0,1e-08]
[1760034184625,1.20982046,120650.0,120640.0,1e-08]
[1760034184838,1.2020882,120650.0,120640.0,1e-08]
[1760034185083,1.20980776,120650.0,120640.0,1e-08]
[1760034185319,0.66598644,120650.0,120640.0,1e-08]
[1760034185551,0.84072644,120650.0,120640.0,1e-08]
[1760034185768,0.86561548,120650.0,120640.0,1e-08]
[1760034185986,0.04806673,120650.0,120640.0,0.3052925]
[1760034186197,0.45327548,120650.0,120640.0,0.13951001]
[1760034186418,0.45327548,120650.0,120640.0,0.3052925]
[1760034186637,0.45331548,120650.0,120640.0,0.13951001]
[1760034186893,0.52561548,120650.0,120640.0,0.07520001]
[1760034187138,0.52560668,120650.0,120640.0,0.07520001]
[1760034187772,0.78368751,120650.0,120640.0,1e-08]
[1760034187992,1.02308751,120650.0,120640.0,1e-08]
[1760034188589,0.71894751,120650.0,120640.0,1e-08]
[1760034188834,1.82213733,120650.0,120640.0,1e-08]
[1760034189014,0.79174845,120650.0,120640.0,1e-08]
[1760034189232,0.86720668,120650.0,120640.0,0.04317001]
[1760034189429,0.86720668,120650.0,120640.0,1e-08]
[1760034189861,0.86820668,120650.0,120640.0,1e-08]
[1760034190869,0.86920668,120650.0,120640.0,1e-08]
[1760034191102,0.86920668,120650.0,120640.0,0.00155814]
[1760034191562,1.20568431,120650.0,120640.0,0.00155814]
[1760034191776,1.36696751,120650.0,120640.0,0.00155814]
[1760034192218,1.36700751,120650.0,120640.0,0.00155814]
[1760034192449,0.82388473,120650.0,120640.0,0.00155814]
[1760034192743,1.58470556,120650.0,120640.0,0.00155814]
[1760034192972,1.66204867,120650.0,120640.0,0.00025814]
[1760034193184,0.53593439,120640.0,120630.0,0.00047]
[1760034193391,1.11502026,120640.0,120630.0,0.00047]
[1760034193605,1.22512026,120640.0,120630.0,0.00047]
[1760034194492,1.24785995,120640.0,120630.0,0.00047]
[1760034194713,1.3056214,120640.0,120630.0,0.00047]
[1760034194848,1.30555964,120640.0,120630.0,0.00047]
[1760034195285,1.32779499,120640.0,120630.0,0.00047]
[1760034196806,0.89497416,120640.0,120630.0,0.00047]
[1760034197009,1.32779499,120640.0,120630.0,0.00047]
[1760034197224,1.65551499,120640.0,120630.0,0.00047]
[1760034197437,1.65547499,120640.0,120630.0,0.00047]
[1760034197917,1.32779499,120640.0,120630.0,0.00047]
[1760034198355,1.65547499,120640.0,120630.0,0.00047]
[1760034198730,1.65547499,120640.0,120630.0,0.00098949]
[1760034199109,1.41399499,120640.0,120630.0,0.00098949]
[1760034199321,1.65547499,120640.0,120630.0,0.00098949]
[1760034199691,1.68511133,120640.0,120630.0,0.00098949]
[1760034200021,1.66279598,120640.0,120630.0,0.00098949]
[1760034200443,1.66275598,120640.0,120630.0,0.00098949]
[1760034200673,1.66271598,120640.0,120630.0,0.00098949]
[1760034201048,1.66371598,120640.0,120630.0,0.00098949]
[1760034201276,1.70813511,120640.0,120630.0,0.00098949]
[1760034201932,1.70913511,120640.0,120630.0,0.00098949]
[1760034202341,0.50580998,120620.0,120610.0,0.0004]
[1760034202697,0.81459993,120620.0,120610.0,0.0004]
[1760034202920,0.85995993,120620.0,120610.0,0.0004]
[1760034203068,0.92469993,120620.0,120610.0,0.0004]
[1760034203686,0.9331451,120620.0,120610.0,0.0004]
[1760034204231,0.95534323,120620.0,120610.0,0.0004]
[1760034204805,0.06307004,120620.0,120610.0,0.30573372]
[1760034205022,0.02312782,120620.0,120610.0,0.38885578]
[1760034205461,0.00771272,120620.0,120610.0,0.38885578]
[1760034205665,0.02315945,120620.0,120610.0,0.38885578]
[1760034207082,0.24158434,120640.0,120630.0,0.16579623]
[1760034207318,0.02367847,120640.0,120630.0,0.30530623]
[1760034207587,0.00822905,120640.0,120630.0,0.30530623]
[1760034208538,0.16579623,120630.0,120620.0,0.00051955]
[1760034208761,0.33882842,120630.0,120620.0,0.00051955]
[1760034208986,0.58078842,120630.0,120620.0,0.00051955]
[1760034209243,0.44892842,120630.0,120620.0,0.00051955]
[1760034209472,0.62313219,120630.0,120620.0,0.00051955]
[1760034209694,1.00853949,120630.0,120620.0,0.00051955]
[1760034210150,0.0409612,120630.0,120620.0,0.30583953]
[1760034210381,0.24956471,120630.0,120620.0,0.30583953]
[1760034210595,0.00772471,120630.0,120620.0,0.30583953]
[1760034210793,0.00772471,120630.0,120620.0,0.30573953]
[1760034212412,0.02555328,120630.0,120620.0,0.30573953]
[1760034215858,1.15556233,120630.0,120620.0,0.00041955]
[1760034216079,1.52212244,120630.0,120620.0,0.00041955]
[1760034216286,1.55179368,120630.0,120620.0,0.00041955]
[1760034216502,1.52948985,120630.0,120620.0,0.00041955]
[1760034216729,1.44949305,120630.0,120620.0,0.00041955]
[1760034217186,1.44951487,120630.0,120620.0,0.00041955]
[1760034218503,1.44951604,120630.0,120620.0,0.00041955]
[1760034218925,1.47182763,120630.0,120620.0,0.00041955]
[1760034219581,1.24536231,120630.0,120620.0,0.00041955]
[1760034219808,1.65327844,120630.0,120620.0,0.00041955]
[1760034220013,1.63096752,120630.0,120620.0,0.00041955]
[1760034220253,1.66115942,120630.0,120620.0,0.00041955]
[1760034220468,1.34750665,120630.0,120620.0,0.00041955]
[1760034220691,1.67546665,120630.0,120620.0,0.00041955]
[1760034220912,1.58946665,120630.0,120620.0,0.00041955]
[1760034221139,1.67566665,120630.0,120620.0,0.00041955]
[1760034221353,1.26750985,120630.0,120620.0,0.00041955]
[1760034221571,1.22305072,120630.0,120620.0,0.00041955]
[1760034221841,1.30925072,120630.0,120620.0,0.00041955]
[1760034222046,1.55117072,120630.0,120620.0,0.00041955]
[1760034222794,1.22305134,120630.0,120620.0,0.00041955]
[1760034223101,0.7902962,120630.0,120620.0,0.00041955]
[1760034223256,1.0321362,120630.0,120620.0,0.00041955]
[1760034223676,1.46489134,120630.0,120620.0,0.00041955]
[1760034223879,1.48720073,120630.0,120620.0,0.00041955]
[1760034224302,1.47170605,120630.0,120620.0,0.00041955]
[1760034224705,1.03887091,120630.0,120620.0,0.00041955]
[1760034225004,1.47162605,120630.0,120620.0,0.00041955]
[1760034225206,1.44198727,120630.0,120620.0,0.00041955]
[1760034225536,1.00923213,120630.0,120620.0,0.00041955]
[1760034226780,1.61161854,120630.0,120620.0,0.00041955]
[1760034226948,1.54843965,120630.0,120620.0,0.00041955]
[1760034227165,1.30667965,120630.0,120620.0,0.00041955]
[1760034227367,1.54839965,120630.0,120620.0,0.00041955]
[1760034228140,1.54823965,120630.0,120620.0,0.00041955]
[1760034228345,1.59659011,120630.0,120620.0,0.00041955]
[1760034228551,0.98672274,120630.0,120620.0,0.00041955]
[1760034228757,1.52593026,120630.0,120620.0,0.00041955]
[1760034229459,1.5259299,120630.0,120620.0,0.00041955]
[1760034229665,1.39321267,120630.0,120620.0,0.00041955]
[1760034230073,1.39301267,120630.0,120620.0,0.00041955]
[1760034230657,1.15165267,120630.0,120620.0,0.00041955]
[1760034230874,1.39297267,120630.0,120620.0,0.00041955]
[1760034231329,1.15165267,120630.0,120620.0,0.00041955]
[1760034231497,1.39297267,120630.0,120620.0,0.00041955]
[1760034231718,0.34203238,120630.0,120620.0,0.07152955]
[1760034231964,0.09086758,120630.0,120620.0,0.13730955]
[1760034232181,0.00774713,120630.0,120620.0,0.31970052]
[1760034232402,0.24961179,120640.0,120630.0,0.16579623]
[1760034232595,0.24961179,120640.0,120630.0,0.30268623]
[1760034232999,0.00825179,120640.0,120630.0,0.30268623]
[1760034233200,0.00050434,120640.0,120630.0,0.30268623]
[1760034234269,0.00050434,120640.0,120630.0,0.73444088]
[1760034234521,0.00050434,120640.0,120630.0,0.97584088]
[1760034234673,0.00050434,120640.0,120630.0,1.0690777]
[1760034235392,0.00050434,120640.0,120630.0,0.8276777]
[1760034235619,0.00050434,120640.0,120630.0,0.8286777]
[1760034235773,0.00050434,120640.0,120630.0,1.0700377]
[1760034236223,0.00050434,120640.0,120630.0,1.0710377]
[1760034236796,0.00050434,120640.0,120630.0,1.0709577]
[1760034237638,0.00050434,120640.0,120630.0,0.8296777]
[1760034237945,0.00050434,120640.0,120630.0,1.0708777]
[1760034238545,1e-08,120640.0,120630.0,1.0708777]
[1760034238749,1e-08,120640.0,120630.0,1.17083769]
[1760034239335,1e-08,120640.0,120630.0,1.16983769]
[1760034239975,1e-08,120650.0,120640.0,0.63593438]
[1760034240175,1e-08,120650.0,120640.0,1.14053799]
[1760034240376,1e-08,120650.0,120640.0,1.85309799]
[1760034240644,1e-08,120650.0,120640.0,1.85325799]
[1760034241062,1e-08,120650.0,120640.0,1.18109799]
[1760034241283,1e-08,120650.0,120640.0,1.85537799]
[1760034241526,1e-08,120650.0,120640.0,1.85637799]
[1760034241740,1e-08,120650.0,120640.0,1.85437799]
[1760034241969,1e-08,120650.0,120640.0,1.85529799]
[1760034242189,1e-08,120650.0,120640.0,1.85629799]
[1760034242616,1e-08,120650.0,120640.0,1.61501799]
[1760034242831,1e-08,120650.0,120640.0,1.85625799]
[1760034243019,0.06619503,120690.0,120680.0,0.50572754]
[1760034243362,0.06619503,120690.0,120680.0,0.9463496]
[1760034243573,0.06619503,120710.0,120700.0,0.16570008]
[1760034243803,0.06619503,120710.0,120700.0,0.89027404]
[1760034244008,0.06619503,120710.0,120700.0,0.93440404]
[1760034244216,0.06619503,120730.0,120720.0,0.16567263]
[1760034244445,0.09287503,120710.0,120700.0,0.00015156]
[1760034244720,0.646303,120710.0,120700.0,0.00015156]
[1760034244922,1.24874514,120710.0,120700.0,0.00015156]
[1760034245127,1.18255011,120710.0,120700.0,0.00015156]
[1760034245348,0.84255011,120710.0,120700.0,0.00015156]
[1760034245570,0.77892011,120710.0,120700.0,0.00015156]
[1760034245802,0.84255011,120710.0,120700.0,0.00015156]
[1760034246282,0.84254716,120710.0,120700.0,0.00015156]
[1760034248896,0.84576176,120710.0,120700.0,0.00015156]
[1760034249338,0.24331962,120710.0,120700.0,0.00015156]
[1760034249554,0.24331962,120710.0,120700.0,0.04428156]
[1760034250618,0.24331962,120710.0,120700.0,0.00015156]
[1760034251047,0.30694962,120710.0,120700.0,0.00015156]
[1760034251939,0.24331868,120710.0,120700.0,0.00015156]
[1760034252153,0.78213082,120710.0,120700.0,0.00015156]
[1760034252368,0.78213082,120710.0,120700.0,0.04428156]
[1760034252607,0.24331868,120710.0,120700.0,0.07442156]
[1760034253695,0.24431868,120710.0,120700.0,0.07442156]
[1760034254212,0.17658868,120710.0,120700.0,0.13425156]
[1760034255281,0.16575501,120660.0,120650.0,0.00024821]
[1760034255500,0.19623501,120660.0,120650.0,0.00039985]
[1760034255714,0.16575501,120660.0,120650.0,0.06542985]
[1760034255928,0.16575501,120660.0,120650.0,0.14183672]
[1760034256148,0.16575501,120660.0,120650.0,0.36817985]
[1760034257426,0.16675501,120660.0,120650.0,0.36817985]
[1760034258095,0.16675501,120660.0,120650.0,0.5339086]
[1760034258318,0.13005306,120670.0,120650.0,0.36813985]
[1760034258536,0.16575501,120660.0,120650.0,0.36813985]
[1760034258755,0.13005306,120670.0,120650.0,0.61702843]
[1760034258998,0.13776033,120670.0,120650.0,0.70318843]
[1760034259647,0.13876033,120670.0,120650.0,0.70318843]
[1760034260348,0.13776033,120670.0,120650.0,0.70318843]
[1760034260583,0.13776033,120670.0,120660.0,0.16575501]
[1760034260806,0.13776033,120670.0,120650.0,0.00039985]
[1760034260807,0.6950669,120660.0,120650.0,0.00039985]
[1760034261034,1.69004856,120660.0,120650.0,0.00039985]
[1760034261493,0.16580998,120620.0,120610.0,0.0004]
[1760034261727,0.19628998,120620.0,120610.0,0.01178434]
[1760034261955,0.23633998,120620.0,120610.0,0.23958254]
[1760034262173,0.23633998,120620.0,120610.0,0.24886254]
[1760034263089,0.23633998,120620.0,120610.0,0.00298254]
[1760034263293,0.29996998,120620.0,120610.0,0.24882254]
[1760034264177,0.29996998,120620.0,120610.0,0.24874254]
[1760034268458,0.29996998,120620.0,120610.0,0.41456626]
[1760034269126,0.13416,120620.0,120610.0,0.16880626]
[1760034269324,0.20461856,120630.0,120620.0,0.16580998]
[1760034269325,0.03881011,120630.0,120620.0,0.16580998]
[1760034269572,0.3277784,120630.0,120620.0,0.28929]
[1760034269795,0.3277784,120630.0,120620.0,0.24516]
[1760034270099,0.26819989,120650.0,120630.0,0.16579623]
[1760034270258,0.16578249,120640.0,120630.0,0.16579623]
[1760034270477,0.35132195,120650.0,120630.0,0.23125623]
[1760034270732,0.35132195,120650.0,120640.0,0.16578249]
[1760034270733,0.59586346,120650.0,120640.0,0.16578249]
[1760034271073,0.07906001,120650.0,120640.0,0.20991249]
[1760034271316,0.20477876,120650.0,120640.0,0.23081249]
[1760034271840,0.19624875,120650.0,120640.0,0.23081249]
[1760034272063,0.44139501,120660.0,120640.0,0.23081249]
[1760034272258,0.59585186,120660.0,120640.0,0.23081249]
[1760034272468,0.16576875,120650.0,120640.0,0.23081249]
[1760034272914,0.34298707,120660.0,120640.0,0.23081249]
[1760034273121,0.59577182,120660.0,120640.0,0.23081249]
[1760034273325,0.6042268,120660.0,120640.0,0.23081249]
[1760034273538,0.03818475,120660.0,120650.0,0.18666875]
[1760034273741,0.03048,120660.0,120650.0,0.22855875]
[1760034274189,0.00884329,120670.0,120660.0,0.16575501]
[1760034274394,0.00113854,120670.0,120660.0,0.27076501]
[1760034274821,0.00113854,120670.0,120660.0,0.78019885]
[1760034275036,0.00113854,120670.0,120660.0,1.02511885]
[1760034277164,0.00113854,120670.0,120660.0,1.08711911]
[1760034277995,0.00113854,120670.0,120660.0,0.84219911]
[1760034278224,0.00113854,120670.0,120660.0,1.08687911]
[1760034279295,0.00113854,120670.0,120660.0,1.08787911]
[1760034280856,0.00113854,120670.0,120660.0,1.08759911]
[1760034282360,0.00113854,120670.0,120660.0,1.1875991]
[1760034282579,0.00113854,120670.0,120660.0,0.973351]
[1760034282805,0.00113854,120670.0,120660.0,1.217591]
[1760034283448,0.00113854,120670.0,120660.0,1.216591]
[1760034283629,0.00113854,120670.0,120660.0,1.217591]
[1760034285244,0.00113854,120670.0,120660.0,1.218591]
[1760034286537,0.00113854,120670.0,120660.0,1.11859101]
[1760034286777,0.00113854,120670.0,120660.0,1.218591]
[1760034288296,0.00113854,120670.0,120660.0,1.131991]
[1760034288484,0.00113854,120670.0,120660.0,1.218151]
[1760034289856,0.00113854,120670.0,120660.0,1.217951]
[1760034290860,0.00113854,120670.0,120660.0,0.888191]
[1760034291072,0.00113854,120670.0,120660.0,1.217951]
[1760034293843,0.00113854,120670.0,120660.0,0.888191]
[1760034294051,0.00113854,120670.0,120660.0,1.217591]
[1760034295085,0.00113854,120670.0,120660.0,1.11759101]
[1760034295295,0.00113854,120670.0,120660.0,1.217591]
[1760034296161,0.00113854,120670.0,120660.0,1.217511]
[1760034300682,1e-08,120670.0,120660.0,1.216991]
[1760034300886,1e-08,120670.0,120660.0,0.974311]
[1760034301118,1e-08,120670.0,120660.0,1.216951]
[1760034301335,1e-08,120670.0,120660.0,0.974311]
[1760034301553,1e-08,120670.0,120660.0,1.23999099]
[1760034301735,1e-08,120670.0,120660.0,0.99831099]
[1760034301934,1e-08,120670.0,120660.0,0.99931099]
[1760034302246,1e-08,120670.0,120660.0,1.24199099]
[1760034303439,1e-08,120670.0,120660.0,0.99931099]
[1760034303815,1e-08,120670.0,120660.0,1.29931099]
[1760034304026,1e-08,120670.0,120660.0,1.54183099]
[1760034305974,1e-08,120670.0,120660.0,1.29931099]
[1760034306414,0.06619503,120710.0,120660.0,1.29931099]
[1760034306415,0.06619503,120710.0,120700.0,0.53585198]
[1760034306632,0.06619503,120710.0,120700.0,1.06777404]
[1760034307086,0.06619503,120710.0,120700.0,1.06773404]
[1760034307532,0.07393965,120730.0,120720.0,0.16567263]
[1760034307719,0.07393952,120730.0,120720.0,0.52831263]
[1760034308162,0.07393952,120730.0,120720.0,0.28603263]
[1760034308381,0.07393952,120730.0,120720.0,0.52827263]
[1760034308594,0.00774449,120730.0,120720.0,0.52827263]
[1760034309031,0.00774449,120730.0,120720.0,0.53681499]
[1760034309430,0.00774449,120730.0,120720.0,0.28603263]
[1760034309649,0.00774449,120730.0,120720.0,0.52819263]
[1760034310653,0.00774449,120730.0,120720.0,0.52803263]
[1760034312499,0.01110647,120730.0,120720.0,0.52803263]
[1760034319892,0.01110647,120730.0,120720.0,0.28603263]
[1760034320081,0.01110647,120730.0,120720.0,0.52751263]
[1760034324153,0.01110647,120730.0,120720.0,0.28603263]
[1760034324561,0.01110647,120730.0,120720.0,0.52703263]
[1760034327228,0.00336198,120730.0,120720.0,0.28603263]
[1760034327434,0.00336198,120730.0,120720.0,0.36915469]
[1760034327662,0.00336198,120730.0,120720.0,0.60995469]
[1760034327880,0.00336198,120730.0,120720.0,0.70915469]
[1760034328095,0.00336198,120730.0,120720.0,0.94995469]
[1760034328309,0.00336198,120730.0,120720.0,0.94991469]
[1760034330557,0.04314198,120730.0,120720.0,0.06052]
[1760034330816,0.30923508,120730.0,120710.0,0.59466039]
[1760034331008,0.3015589,120730.0,120710.0,0.60645726]
[1760034331234,0.3015589,120730.0,120720.0,0.16567263]
[1760034331737,0.6057129,120730.0,120710.0,0.60645726]
[1760034331972,0.3015589,120730.0,120720.0,0.16567263]
[1760034332601,0.1656589,120730.0,120720.0,0.20639263]
[1760034332802,0.50063113,120740.0,120720.0,0.26516263]
[1760034333006,0.56186113,120740.0,120720.0,0.26516263]
[1760034333182,0.25770713,120740.0,120720.0,0.26516263]
[1760034333588,0.25770713,120740.0,120720.0,0.20639263]
[1760034333805,0.49830713,120740.0,120730.0,0.02133]
[1760034333987,0.53993713,120740.0,120730.0,0.02133]
[1760034336805,0.53977713,120740.0,120730.0,0.02133]
[1760034337291,0.54365778,120740.0,120730.0,0.02133]
[1760034337678,0.3336582,120740.0,120730.0,0.02133]
[1760034337852,0.3656082,120740.0,120730.0,0.02133]
[1760034338052,0.53127682,120740.0,120730.0,0.02133]
[1760034338254,0.29083682,120740.0,120730.0,0.02133]
[1760034338570,0.1656589,120730.0,120720.0,0.19645263]
[1760034338731,0.2392389,120730.0,120720.0,0.19645263]
[1760034339141,0.2392389,120730.0,120720.0,0.23569263]
[1760034339627,0.2392389,120730.0,120700.0,0.53393686]
[1760034339628,0.16568635,120710.0,120700.0,0.53393686]
[1760034339844,0.04163,120710.0,120700.0,0.65629892]
[1760034340075,0.04163,120710.0,120700.0,0.89661892]
[1760034340294,0.30049635,120710.0,120700.0,0.75441686]
[1760034340512,0.13481,120710.0,120700.0,0.41441686]
[1760034341058,0.07358,120710.0,120700.0,0.21337686]